bitfinex/quotes_SOLUSD_20260214
["timestamp","ask_amount","ask_price","bid_price","bid_amount"]
[1771031296465,0.96551694,84.933,84.901,0.10123647]
[1771031296763,0.96551694,84.933,84.902,0.10148413]
[1771031297065,0.96551694,84.933,84.91,2.22319504]
[1771031297361,0.96551694,84.933,84.902,0.10148413]
[1771031297544,0.96551694,84.933,84.91,2.22319504]
[1771031298465,71.26,84.936,84.9,2.22319504]
[1771031298466,0.96551694,84.931,84.9,2.22319504]
[1771031299569,0.96551694,84.929,84.9,2.32504011]
[1771031299862,0.96551694,84.929,84.901,0.10184507]
[1771031301060,0.96551694,84.929,84.91,2.22319504]
[1771031302256,0.96551694,84.927,84.91,2.22319504]
[1771031303867,0.96551694,84.925,84.91,2.22319504]
[1771031304187,0.96551694,84.925,84.9,2.22319504]
[1771031304873,0.96551694,84.925,84.9,2.32561454]
[1771031305274,0.96551694,84.925,84.901,0.1024195]
[1771031307879,0.96551694,84.923,84.9,2.22319504]
[1771031308268,0.96551694,84.923,84.9,2.32594361]
[1771031308983,0.96551694,84.923,84.901,0.10285575]
[1771031309282,0.96551694,84.923,84.91,2.22319504]
[1771031309777,0.96551694,84.927,84.91,2.22319504]
[1771031310281,0.96551694,84.925,84.91,2.22319504]
[1771031313563,0.96551694,84.923,84.91,2.22319504]
[1771031313769,0.96551694,84.923,84.901,0.10347346]
[1771031313968,0.96551694,84.923,84.91,2.22319504]
[1771031317987,0.96551694,84.923,84.902,0.10376663]
[1771031319571,0.96551694,84.923,84.91,2.22319504]
[1771031321990,0.9783016,84.927,84.91,2.32751839]
[1771031323294,0.9783016,84.936,84.911,0.10441244]
[1771031325597,11.7737093,84.935,84.911,0.10441244]
[1771031325894,0.9783016,84.934,84.911,0.10441244]
[1771031326292,0.9783016,84.934,84.91,2.22319504]
[1771031329612,0.9783016,84.932,84.91,2.22319504]
[1771031331003,0.9783016,84.932,84.91,2.22062172]
[1771031331701,0.9783016,84.932,84.92,2.22062172]
[1771031332090,0.9783016,84.932,84.913,0.1051696]
[1771031333004,0.9783016,84.932,84.91,2.22062172]
[1771031333183,0.9783016,84.932,84.91,2.32587069]
[1771031334288,0.9783016,84.93,84.91,2.32587069]
[1771031335387,0.9783016,84.928,84.9,2.22062172]
[1771031336905,0.9783016,84.926,84.9,2.32617916]
[1771031337086,0.9783016,84.926,84.901,0.10555744]
[1771031337291,0.9783016,84.926,84.911,0.10555744]
[1771031337501,0.9783016,84.935,84.911,0.10555744]
[1771031337804,0.9783016,84.935,84.92,2.22062172]
[1771031340811,0.9783016,84.935,84.896,29.44769061]
[1771031340812,0.9783016,84.957,84.93,2.22062172]
[1771031342210,0.96551694,84.955,84.93,2.22062172]
[1771031342406,0.96551694,84.955,84.922,0.10606413]
[1771031344014,0.96551694,84.955,84.93,2.22062172]
[1771031344394,0.96551694,84.953,84.93,2.22062172]
[1771031345315,0.96551694,84.953,84.922,0.10606413]
[1771031346206,0.96551694,84.951,84.922,0.10606413]
[1771031346507,0.96551694,84.951,84.93,2.22062172]
[1771031347421,0.96551694,84.949,84.926,0.10633579]
[1771031347912,0.96551694,84.949,84.92,2.22062172]
[1771031350316,0.96551694,84.947,84.91,2.32721691]
[1771031350616,0.96551694,84.945,84.91,2.22062172]
[1771031350819,0.96551694,84.945,84.906,0.10659519]
[1771031351301,0.96551694,84.945,84.91,2.22062172]
[1771031354214,71.52,84.946,84.91,2.32740374]
[1771031354215,0.96551694,84.943,84.91,2.32740374]
[1771031354926,0.96551694,84.941,84.91,2.32740374]
[1771031356620,0.96551694,84.939,84.911,0.10696248]
[1771031358018,0.96551694,84.937,84.911,0.10696248]
[1771031360925,0.96551694,84.935,84.911,0.10696248]
[1771031361829,0.96551694,84.935,84.92,2.22062172]
[1771031362021,0.96551694,84.935,84.918,0.1072497]
[1771031362022,0.96551694,84.935,84.913,0.1072497]
[1771031363221,0.96551694,84.933,84.913,0.1072497]
[1771031368203,0.96551694,84.937,84.92,2.22062172]
[1771031368403,0.96551694,84.937,84.921,0.10757317]
[1771031369229,0.96551694,84.935,84.92,2.22062172]
[1771031369647,11.77242125,84.945,84.93,2.22062172]
[1771031371220,12.79177617,84.945,84.93,2.22062172]
[1771031371444,1.01935492,84.945,84.93,2.22062172]
[1771031377318,1.01935492,84.945,84.92,2.22062172]
[1771031377519,1.01935492,84.943,84.92,2.22062172]
[1771031381235,1.01935492,84.943,84.921,11.77565031]
[1771031381540,1.01935492,84.952,84.93,2.22062172]
[1771031382632,1.01935492,84.951,84.93,2.22062172]
[1771031383344,1.01935492,84.951,84.902,29.44571388]
[1771031383524,1.01935492,84.951,84.92,2.22062172]
[1771031384536,11.77163037,84.95,84.92,2.22062172]
[1771031384741,1.01935492,84.949,84.92,2.22062172]
[1771031387151,1.01935492,84.947,84.92,2.22062172]
[1771031391950,1.01935492,84.945,84.91,2.22062172]
[1771031392949,1.01935492,84.945,84.91,2.22088628]
[1771031393129,11.77218468,84.946,84.91,2.22088628]
[1771031393130,11.77246185,84.944,84.91,2.22088628]
[1771031393334,1.01935492,84.943,84.91,2.22088628]
[1771031394155,1.01935492,84.943,84.909,11.77723581]
[1771031394537,1.01935492,84.943,84.91,2.22088628]
[1771031397759,1.01935492,84.941,84.91,2.22088628]
[1771031399250,29.4304617,84.946,84.893,61.9]
[1771031399251,1.01935492,84.958,84.93,2.22088628]
[1771031399439,0.1,84.97,84.95,2.22088628]
[1771031399646,0.1,84.97,84.96,2.22088628]
[1771031399846,0.1,84.97,84.95,2.22088628]
[1771031401160,1.01935492,84.969,84.95,2.22088628]
[1771031401657,1.01935492,84.969,84.9,2.22088628]
[1771031401658,1.01935492,84.969,84.93,2.22088628]
[1771031401874,1.01935492,84.959,84.855,61.9]
[1771031402037,1.01935492,84.949,84.91,2.22088628]
[1771031402239,1.01935492,84.939,84.9,2.22088628]
[1771031404664,1.01935492,84.937,84.901,11.77842428]
[1771031407748,1.01935492,84.935,84.901,11.77842428]
[1771031410978,1.01935492,84.933,84.901,11.77842428]
[1771031426489,1.01935492,84.919,84.866,61.9]
[1771031426691,1.01935492,84.919,84.88,2.22088628]
[1771031427289,11.77606632,84.918,84.881,11.78119956]
[1771031427491,1.01935492,84.917,84.881,11.78119956]
[1771031429781,11.77634368,84.916,84.881,11.78119956]
[1771031429985,1.01935492,84.915,84.881,11.78119956]
[1771031435399,1.01935492,84.913,84.881,11.78119956]
[1771031438608,1.01935492,84.911,84.877,11.78171861]
[1771031438807,1.01935492,84.909,84.877,11.78171861]
[1771031439012,1.01935492,84.909,84.86,2.22088628]
[1771031439313,1.01935492,84.899,84.861,11.78397614]
[1771031441515,1.01935492,84.897,84.861,11.78397614]
[1771031442811,11.77911797,84.896,84.861,11.78397614]
[1771031443013,1.01935492,84.895,84.861,11.78397614]
[1771031452803,1.01935492,84.893,84.861,11.78397614]
[1771031455721,1.01935492,84.891,84.856,11.78454764]
[1771031455918,1.01935492,84.889,84.856,11.78454764]
[1771031457010,1.01935492,84.887,84.856,11.78454764]
[1771031458223,1.01935492,84.887,84.86,2.22301125]
[1771031459224,1.01935492,84.887,84.85,31.3]
[1771031459225,1.01935492,84.887,84.851,11.78536493]
[1771031459929,1.01935492,84.887,84.851,43.14536493]
[1771031460427,1.01935492,84.885,84.851,43.14536493]
[1771031460731,0.98681867,84.885,84.852,0.03644205]
[1771031475225,11.78078318,84.884,84.852,0.03644205]
[1771031475425,1.00308679,84.883,84.852,0.03644205]
[1771031503468,1.00308679,84.883,84.851,11.78536493]
[1771031503852,1.00308679,84.883,84.851,11.82645308]
[1771031504353,1.00308679,84.883,84.852,0.04108815]
[1771031504855,1.00308679,84.881,84.851,11.78536493]
[1771031506473,1.00308679,84.881,84.848,0.04117641]
[1771031506766,1.00308679,84.879,84.846,11.78605944]
[1771031510381,1.00308679,84.877,84.841,11.78675404]
[1771031510579,1.00308679,84.877,84.841,11.82843914]
[1771031511291,1.00308679,84.877,84.841,11.78675404]
[1771031511486,1.00308679,84.869,84.841,11.78675404]
[1771031511670,1.00308679,84.859,84.84,0.2]
[1771031512359,47.08796479,84.948,84.851,0.04176651]
[1771031512360,1.00308679,84.869,84.851,0.04176651]
[1771031512560,1.00308679,84.892,84.851,0.04176651]
[1771031512875,1.00308679,84.888,84.851,0.04176651]
[1771031514077,11.78036684,84.887,84.851,0.04176651]
[1771031514391,1.00308679,84.886,84.851,0.04176651]
[1771031515478,1.00308679,84.884,84.851,0.04176651]
[1771031517379,1.00308679,84.884,84.85,14.00900219]
[1771031517877,1.00308679,84.882,84.85,14.00900219]
[1771031518879,1.00308679,84.88,84.85,14.05131296]
[1771031520683,1.00308679,84.88,84.84,29.66723243]
[1771031520684,1.00308679,84.878,84.84,0.2]
[1771031521181,2.22355792,84.87,84.84,0.2]
[1771031521367,1.00308679,84.869,84.84,0.2]
[1771031521965,1.00308679,84.869,84.841,11.78675404]
[1771031522871,1.00308679,84.867,84.841,11.82942749]
[1771031523183,1.00308679,84.867,84.842,0.04267345]
[1771031526989,1.00308679,84.865,84.841,11.78675404]
[1771031527168,1.00308679,84.865,84.84,0.2]
[1771031529984,1.00308679,84.865,84.84,0.24314725]
[1771031530292,1.00308679,84.87,84.851,0.04314725]
[1771031530790,1.00308679,84.882,84.851,0.04314725]
[1771031532169,1.00308679,84.88,84.852,0.04327573]
[1771031536594,11.78147716,84.879,84.852,0.04327573]
[1771031536892,1.00308679,84.878,84.852,0.04327573]
[1771031545476,1.00308679,84.888,84.861,0.0440966]
[1771031546501,2.22355792,84.9,84.861,0.0440966]
[1771031546502,1.00308679,84.886,84.862,0.04415031]
[1771031546706,1.00308679,84.899,84.861,11.78397614]
[1771031548509,1.00308679,84.897,84.856,11.7846705]
[1771031548896,1.00308679,84.889,84.856,11.7846705]
[1771031549597,1.00308679,84.889,84.846,11.78601068]
[1771031549815,1.00308679,84.889,84.846,11.83031844]
[1771031549996,1.00308679,84.879,84.846,11.78601068]
[1771031551012,1.00308679,84.877,84.842,0.04222859]
[1771031555815,1.00308679,84.875,84.841,11.78675404]
[1771031558811,1.00308679,84.873,84.841,11.78675404]
[1771031560706,1.00308679,84.873,84.85,2.22355792]
[1771031563916,1.00308679,84.873,84.851,11.78536493]
[1771031564317,2.22355792,84.92,84.861,0.96502676]
[1771031564617,29.4429647,84.91,84.871,0.96502676]
[1771031565002,43.27592764,84.919,84.88,2.22355792]
[1771031565003,11.77592764,84.919,84.88,2.22355792]
[1771031565200,70.02,84.918,84.88,2.22355792]
[1771031566293,0.97734803,84.915,84.88,2.22355792]
[1771031567220,11.77662105,84.914,84.88,3.18858468]
[1771031567402,0.97734803,84.913,84.88,3.18858468]
[1771031568016,0.97734803,84.913,84.881,0.96502676]
[1771031568835,0.97734803,84.913,84.881,12.74622632]
[1771031569038,0.97734803,84.913,84.891,0.96502676]
[1771031569914,0.97734803,84.913,84.892,11.77967299]
[1771031570703,0.97734803,84.912,84.871,11.78258769]
[1771031570908,0.97734803,84.912,84.88,2.22355792]
[1771031571516,0.97734803,84.91,84.88,14.00486454]
[1771031572728,0.97734803,84.91,84.88,2.22355792]
[1771031572917,0.97734803,84.91,84.88,2.22248156]
[1771031573724,11.77731453,84.909,84.88,2.22248156]
[1771031573926,0.97734803,84.908,84.876,11.78188885]
[1771031577608,0.97734803,84.906,84.876,0.96502676]
[1771031579728,0.97734803,84.906,84.88,2.22248156]
[1771031580024,0.97734803,84.906,84.881,0.95903308]
[1771031580523,0.97734803,84.911,84.891,0.95290336]
[1771031580728,0.97734803,84.927,84.901,0.95290336]
[1771031580910,0.97734803,84.927,84.9,2.22248156]
[1771031581408,0.97734803,84.927,84.901,0.92120525]
[1771031581909,29.43279626,84.94,84.861,4.61729252]
[1771031581910,0.94470943,84.94,84.92,2.22248156]
[1771031582312,0.94470943,84.94,84.91,2.22248156]
[1771031582528,0.94470943,84.94,84.9,2.22248156]
[1771031582730,0.94470943,84.939,84.9,2.22248156]
[1771031584121,41.20652711,84.938,84.9,2.22248156]
[1771031584311,0.94470943,84.937,84.9,2.22248156]
[1771031585030,0.94470943,84.937,84.901,12.69962953]
[1771031585727,0.94470943,84.937,84.902,0.9175756]
[1771031586522,0.94470943,84.935,84.902,0.9175756]
[1771031588040,0.94470943,84.935,84.911,0.90633347]
[1771031589121,0.94470943,84.935,84.91,2.22248156]
[1771031589122,0.94470943,84.935,84.92,2.22248156]
[1771031590238,0.94470943,84.935,84.917,0.90080906]
[1771031592241,0.94470943,84.951,84.921,0.88461364]
[1771031595137,0.94470943,84.949,84.921,0.88461364]
[1771031597042,11.77190751,84.948,84.921,0.88461364]
[1771031597238,0.94470943,84.947,84.921,0.88461364]
[1771031599748,0.94470943,84.958,84.931,0.84407219]
[1771031601634,0.94470943,84.958,84.94,2.22248156]
[1771031601838,0.94470943,84.962,84.941,0.83450887]
[1771031606555,0.94470943,84.96,84.941,0.83450887]
[1771031606939,0.94470943,84.96,84.94,2.22248156]
[1771031610838,0.94470943,84.96,84.941,0.79410597]
[1771031611038,70.12,84.963,84.941,0.79410597]
[1771031611256,0.89581425,84.962,84.941,0.79410597]
[1771031613753,0.1,84.97,84.951,0.77745416]
[1771031613960,0.1,84.97,84.96,2.22248156]
[1771031614134,0.1,84.97,84.96,2.99993572]
[1771031614944,0.1,84.97,84.96,0.77745416]
[1771031615342,0.1,84.97,84.961,0.77341005]
[1771031615750,0.89581425,84.979,84.909,47.10897147]
[1771031616054,2.22248156,84.97,84.921,0.80192866]
[1771031616646,2.22248156,84.96,84.921,0.80192866]
[1771031616857,70.34,84.959,84.921,0.80192866]
[1771031617379,70.32,84.958,84.921,0.80192866]
[1771031617950,0.89581425,84.956,84.922,0.79407057]
[1771031619954,0.8320961,84.954,84.924,0.78261868]
[1771031621660,70.32,84.958,84.924,0.78261868]
[1771031621661,0.8320961,84.952,84.924,0.78261868]
[1771031622756,0.8320961,84.952,84.926,0.77218259]
[1771031624750,0.8320961,84.95,84.926,0.77218259]
[1771031628662,0.8320961,84.948,84.926,0.77218259]
[1771031638270,0.8320961,84.946,84.926,0.77218259]
[1771031642267,0.8320961,84.946,84.924,11.77512478]
[1771031643364,0.8320961,84.946,84.924,12.48550292]
[1771031643888,70.32,84.958,84.907,29.44364691]
[1771031643889,0.80978004,84.944,84.908,0.70779261]
[1771031644069,0.80978004,84.944,84.911,0.70779261]
[1771031644269,0.80978004,84.944,84.921,0.70779261]
[1771031648066,0.80978004,84.942,84.921,0.70779261]
[1771031649980,2.21994406,84.96,84.89,16.33193703]
[1771031649981,0.80978004,84.965,84.931,0.69289128]
[1771031650187,0.80978004,84.965,84.941,0.69289128]
[1771031653093,0.80978004,84.963,84.941,0.69289128]
[1771031653395,0.80978004,84.963,84.94,2.21994406]
[1771031653396,0.80978004,84.963,84.943,0.68581911]
[1771031653565,0.80978004,84.968,84.943,0.68581911]
[1771031653770,0.1,84.98,84.961,0.68351566]
[1771031653969,0.80978004,84.978,84.956,0.68351566]
[1771031654392,0.80978004,84.978,84.961,0.68351566]
[1771031655188,0.90978004,84.98,84.961,0.68351566]
[1771031656292,0.90978004,84.98,84.962,0.67898784]
[1771031656674,0.90978004,84.99,84.971,0.67676286]
[1771031658495,0.80978004,84.988,84.966,0.67456343]
[1771031658994,0.80978004,84.988,84.961,11.77001142]
[1771031658995,0.80978004,84.988,84.962,0.67238927]
[1771031659287,0.80978004,84.988,84.96,2.21994406]
[1771031659493,0.80978004,84.988,84.952,0.67238927]
[1771031660282,0.80978004,84.985,84.953,11.77121467]
[1771031660492,0.80978004,84.985,84.943,11.77260044]
[1771031660792,41.1832537,84.986,84.943,11.77260044]
[1771031660793,0.80978004,84.983,84.944,0.66811558]
[1771031660995,0.80978004,84.981,84.944,0.66811558]
[1771031662583,11.76747469,84.98,84.95,2.21994406]
[1771031662889,0.80978004,84.979,84.95,2.88388355]
[1771031663087,0.80978004,84.979,84.95,2.21994406]
[1771031663291,0.80978004,84.979,84.951,0.66393949]
[1771031663899,0.80978004,84.979,84.95,2.21994406]
[1771031664407,0.80978004,84.979,84.934,0.66188736]
[1771031664699,43.40610549,84.98,84.935,12.43356809]
[1771031664700,0.80978004,84.975,84.935,12.43356809]
[1771031665280,0.80978004,84.975,84.936,0.65985879]
[1771031666193,0.80978004,84.973,84.94,2.21994406]
[1771031666406,0.80978004,84.971,84.941,0.65785353]
[1771031666899,0.80978004,84.971,84.951,0.65587129]
[1771031672105,71.36143051,84.974,84.953,0.64444697]
[1771031672480,0.74143051,84.973,84.953,0.64444697]
[1771031672892,0.74143051,84.972,84.953,0.64444697]
[1771031673096,0.74143051,84.972,84.95,2.21994406]
[1771031674206,0.74143051,84.97,84.944,11.77244164]
[1771031674580,0.74143051,84.97,84.95,2.21994406]
[1771031674987,0.74143051,84.97,84.944,11.77244164]
[1771031675193,0.74143051,84.97,84.945,0.63902499]
[1771031676103,0.74143051,84.97,84.944,11.77244164]
[1771031677304,0.74143051,84.968,84.937,11.77339023]
[1771031677496,70.72,84.971,84.951,0.63378771]
[1771031677697,71.46143051,84.971,84.951,0.63378771]
[1771031678294,0.75552488,84.97,84.951,0.63378771]
[1771031679609,0.75552488,84.97,84.95,2.21994406]
[1771031681003,0.75552488,84.969,84.948,11.77187063]
[1771031681385,0.75552488,84.969,84.944,11.77240295]
[1771031682212,0.75552488,84.969,84.945,0.62545233]
[1771031683311,0.75552488,84.969,84.947,0.62384226]
[1771031684493,0.75552488,84.969,84.951,0.62067738]
[1771031688105,0.75552488,84.969,84.946,0.61606508]
[1771031688920,0.75552488,84.967,84.93,11.77432234]
[1771031689097,0.75552488,84.967,84.93,13.9942664]
[1771031689303,0.75552488,84.967,84.927,0.61456283]
[1771031689826,0.75552488,84.967,84.931,0.61307783]
[1771031692127,0.75552488,84.965,84.933,0.61015881]
[1771031692329,0.75552488,84.963,84.933,0.61015881]
[1771031693607,0.75552488,84.963,84.935,0.60730646]
[1771031696225,0.75552488,84.963,84.936,11.77357068]
[1771031696426,0.75552488,84.963,84.937,0.60451926]
[1771031696624,0.75552488,84.963,84.941,0.60314962]
[1771031696932,70.9,84.964,84.941,0.60314962]
[1771031697322,70.94,84.968,84.951,0.60314962]
[1771031699326,2.3188931,84.99,84.951,0.60314962]
[1771031699327,0.75552488,85.009,84.962,0.50045736]
[1771031699624,0.1,85.01,84.991,0.49913438]
[1771031699806,0.75552488,85.009,84.97,2.2188931]
[1771031700003,0.75552488,85.008,84.971,0.49913438]
[1771031700405,0.75552488,85.008,84.967,34.8]
[1771031700824,0.75552488,84.999,84.96,2.2188931]
[1771031701028,0.75552488,84.999,84.953,0.4978266]
[1771031701215,0.71482343,84.997,84.955,0.49653383]
[1771031702211,0.71482343,84.997,84.952,34.8]
[1771031702416,0.71482343,84.989,84.953,11.77121467]
[1771031702818,0.71482343,84.989,84.96,2.2188931]
[1771031703031,0.71482343,84.989,84.961,0.49399268]
[1771031703216,0.71482343,84.988,84.961,0.49399268]
[1771031705820,0.71482343,84.986,84.955,0.48947879]
[1771031706127,0.71482343,84.986,84.956,11.770799]
[1771031706334,0.71482343,84.986,84.96,2.2188931]
[1771031707119,0.71482343,84.986,84.96,2.70676738]
[1771031707320,11.76650546,84.987,84.952,34.8]
[1771031707321,0.71482343,84.997,84.971,0.48787428]
[1771031707827,0.1,85.01,84.991,0.4862882]
[1771031710123,0.81482343,85.01,84.987,11.7664391]
[1771031712423,0.1,85.01,84.991,0.48012399]
[1771031712623,0.81482343,85.01,84.991,0.48012399]
[1771031713431,0.14200632,85.01,84.991,0.48012399]
[1771031714537,0.09568038,85.02,84.987,11.7664391]
[1771031715140,2.2188931,85.0,84.965,0.70887863]
[1771031715337,2.2188931,85.01,84.97,2.2188931]
[1771031715636,2.2188931,85.01,84.971,0.70887863]
[1771031716126,2.31457348,85.02,84.98,2.2188931]
[1771031716330,2.31457348,85.02,84.981,0.70887863]
[1771031716530,0.71482343,85.018,84.981,0.70887863]
[1771031718541,11.76235341,85.017,84.981,0.70887863]
[1771031718734,0.71482343,85.016,84.981,0.70887863]
[1771031720342,0.71482343,85.014,84.981,0.70887863]
[1771031720939,0.71482343,85.014,84.983,0.70887863]
[1771031721143,0.09568038,85.02,85.001,0.70887863]
[1771031721446,0.1,85.03,85.011,0.70887863]
[1771031722462,0.81482343,85.03,85.011,0.70887863]
[1771031724929,0.1,85.03,85.013,0.70887863]
[1771031726344,0.81482343,85.03,85.013,0.70887863]
[1771031726546,0.81482343,85.03,85.003,0.70887863]
[1771031728633,0.81482343,85.03,85.0,2.2188931]
[1771031728634,0.81482343,85.03,85.005,0.70887863]
[1771031730445,0.71482343,85.028,84.998,46.70486497]
[1771031730948,0.74693861,85.026,84.998,47.45187264]
[1771031731953,0.74693861,85.026,84.998,0.74700767]
[1771031732456,0.74693861,85.026,84.996,11.76514691]
[1771031733256,0.74693861,85.024,84.996,11.76514691]
[1771031735348,0.74693861,85.024,84.996,12.51215458]
[1771031736461,0.74693861,85.022,84.996,12.51215458]
[1771031737541,0.74693861,85.022,84.997,0.74700767]
[1771031743369,0.74693861,85.022,84.999,0.70530761]
[1771031745963,0.75629855,85.02,84.995,0.70530761]
[1771031746267,0.75629855,85.019,84.987,35.02]
[1771031746464,0.75629855,85.019,84.986,0.70530761]
[1771031746864,0.75629855,85.017,84.986,0.70530761]
[1771031747066,0.75629855,85.017,84.987,11.76650546]
[1771031747248,0.75629855,85.017,84.988,0.70530761]
[1771031747967,0.75629855,85.017,84.991,0.70530761]
[1771031749674,0.75629855,85.015,84.991,0.70530761]
[1771031750056,0.75629855,85.015,84.987,35.04]
[1771031750772,0.75629855,85.015,84.988,0.70530761]
[1771031751261,0.75629855,85.015,84.991,0.70530761]
[1771031751970,0.75629855,85.015,84.992,0.70530761]
[1771031754581,0.75629855,85.02,84.994,0.70530761]
[1771031757469,0.75629855,85.018,84.994,0.70530761]
[1771031757856,0.1,85.03,85.0,2.2188931]
[1771031758182,0.1,85.03,84.993,46.86567482]
[1771031758183,0.1,85.04,85.021,0.70530761]
[1771031759875,0.75629855,85.039,85.021,0.70530761]
[1771031760993,0.1,85.04,85.021,0.70530761]
[1771031762087,0.8177827,85.04,85.016,0.76092938]
[1771031762666,0.8177827,85.04,85.014,11.76276848]
[1771031763477,0.8177827,85.04,85.02,2.21509055]
[1771031764869,0.8177827,85.04,85.02,2.97601993]
[1771031765173,0.8177827,85.04,85.021,0.76092938]
[1771031768889,0.7177827,85.039,85.013,35.16]
[1771031769279,0.7177827,85.039,85.001,0.76092938]
[1771031769775,0.7177827,85.039,85.011,0.76092938]
[1771031769979,0.7177827,85.039,85.002,0.76092938]
[1771031770379,0.7177827,85.037,85.003,0.76092938]
[1771031771479,0.7177827,85.035,85.003,0.76092938]
[1771031773987,11.76000188,85.034,85.003,0.76092938]
[1771031774194,0.7177827,85.033,85.003,0.76092938]
[1771031775298,0.1,85.04,85.011,0.76092938]
[1771031775477,0.1,85.04,85.021,0.76092938]
[1771031775796,0.1,85.04,84.998,0.76092938]
[1771031775797,0.7177827,85.029,84.998,0.76092938]
[1771031776175,0.7177827,85.027,84.998,0.76092938]
[1771031778488,0.7177827,85.027,85.0,0.76092938]
[1771031779494,12.47800451,85.033,85.0,0.76092938]
[1771031779902,0.7177827,85.032,85.0,0.76092938]
[1771031782404,0.7177827,85.032,85.001,0.76092938]
[1771031783112,0.7177827,85.037,85.002,0.76092938]
[1771031785919,0.7177827,85.035,85.002,0.76092938]
[1771031786294,11.75972529,85.036,85.003,11.76429067]
[1771031786512,11.75972529,85.036,85.004,0.76092938]
[1771031787507,0.7177827,85.035,85.004,0.76092938]
[1771031787810,0.7177827,85.035,85.01,2.21509055]
[1771031788013,0.7177827,85.035,85.011,0.76092938]
[1771031788588,0.7177827,85.019,84.958,11.7705219]
[1771031788794,0.7177827,85.019,84.981,0.76092938]
[1771031789915,0.7177827,85.017,84.981,0.76092938]
[1771031791015,11.76249176,85.016,84.981,0.76092938]
[1771031791317,0.7240486,85.015,84.981,0.76092938]
[1771031793215,0.7240486,85.013,84.981,0.76092938]
[1771031794716,0.7240486,85.011,84.981,0.76092938]
[1771031796118,0.7240486,85.011,84.983,0.72996547]
[1771031798006,11.76164617,85.023,84.985,0.70547022]
[1771031798198,7.17521977,85.07,85.011,0.70547022]
[1771031798199,11.758267,85.047,85.011,0.70547022]
[1771031798403,11.758267,85.047,85.021,0.70547022]
[1771031798607,11.75878246,85.043,85.021,0.70547022]
[1771031798815,0.72093674,85.038,85.011,0.70547022]
[1771031799897,0.72093674,85.038,85.006,0.70547022]
[1771031800098,0.72093674,85.036,85.006,0.70547022]
[1771031800922,0.72093674,85.036,84.996,35.46]
[1771031800923,0.1,85.04,85.021,0.70547022]
[1771031801228,0.82093674,85.04,85.021,0.70547022]
[1771031807923,0.1,85.04,85.021,0.70547022]
[1771031808428,0.1,85.05,85.032,0.70547022]
[1771031816640,0.06752123,85.05,85.031,0.70547022]
[1771031817320,0.78845797,85.05,85.031,0.70547022]
[1771031817634,0.78845797,85.05,85.02,13.97702212]
[1771031817635,0.78845797,85.05,85.026,0.70547022]
[1771031818213,3.00354852,85.05,85.021,0.70547022]
[1771031818420,0.72093674,85.049,85.021,0.70547022]
[1771031822314,0.71321261,85.047,85.008,35.42]
[1771031822627,0.71321261,85.047,85.011,0.72094787]
[1771031822830,0.71321261,85.047,85.008,35.42]
[1771031822831,2.21529935,85.04,85.008,35.42]
[1771031823037,0.71321261,85.037,85.008,35.42]
[1771031823241,0.71321261,85.037,85.0,0.72094787]
[1771031824625,0.71321261,85.037,84.995,0.72094787]
[1771031824813,0.71321261,85.037,84.997,0.72094787]
[1771031826935,0.71321261,85.035,85.0,2.21529935]
[1771031827140,0.71321261,85.035,85.001,0.72094787]
[1771031827948,0.71321261,85.033,85.001,0.72094787]
[1771031829252,0.71321261,85.029,85.001,0.72094787]
[1771031829453,0.71321261,85.019,84.981,0.72094787]
[1771031830340,0.71321261,85.019,84.991,0.72094787]
[1771031831744,0.71321261,85.017,84.981,0.72094787]
[1771031837049,11.76249176,85.016,84.981,0.72094787]
[1771031837248,0.71321261,85.015,84.981,0.72094787]
[1771031849054,0.71321261,85.025,84.991,0.72094787]
[1771031849955,0.71321261,85.042,85.011,0.72094787]
[1771031859767,0.06752123,85.05,85.031,0.69081512]
[1771031859973,0.06752123,85.05,85.041,0.69081512]
[1771031860370,0.70059367,85.049,85.022,35.54]
[1771031861256,0.70059367,85.049,85.012,11.76304521]
[1771031861877,0.70059367,85.049,85.02,2.21529935]
[1771031862470,0.70059367,85.049,85.021,0.69081512]
[1771031863659,0.70059367,85.048,85.021,0.69081512]
[1771031865766,0.70059367,85.046,85.011,0.69081512]
[1771031869087,2.28282058,85.05,85.021,0.69081512]
[1771031869088,0.70059367,85.044,85.021,0.69081512]
[1771031869466,0.70059367,85.044,85.011,0.69081512]
[1771031881792,0.70328182,85.049,85.02,2.21529935]
[1771031881998,0.06752123,85.05,85.031,0.69361332]
[1771031888015,0.06752123,85.05,85.012,61.9]
[1771031888016,0.1,85.07,85.041,0.69361332]
[1771031888191,0.1,85.07,85.06,2.21436635]
[1771031889712,0.1,85.07,85.06,2.90797967]
[1771031891316,0.1,85.07,85.061,0.69361332]
[1771031891512,0.80328182,85.08,85.06,2.21436635]
[1771031891716,0.1,85.1,85.072,0.69361332]
[1771031891717,0.70328182,85.095,85.072,0.69361332]
[1771031891920,0.70328182,85.095,85.061,35.64]
[1771031891921,0.70328182,85.095,85.08,2.21436635]
[1771031892119,0.70328182,85.095,85.08,2.90797967]
[1771031893003,0.1,85.1,85.081,0.69361332]
[1771031893208,0.70328182,85.099,85.08,2.21436635]